Cogmind - Beta 16 @@@ ROGUE MODE // 2026.01.03 @ 01:54:50 Player: KZ_RAD Result: Destroyed by H-55 Commando with Gauss Rifle Performance ------------- Evolutions (2) 1000 Regions Visited (4) 800 Robots Destroyed (51) 255 Value Destroyed (1958) 1958 Prototype IDs (8) 160 Alien Tech Used (0) 0 Bonus (400) 400 TOTAL SCORE: 4573 Bonus ------- Pacifist 200 Entered Garrisons 200 Cogmind --------- Core Integrity 0/550 Matter 281/300 Energy 100/100 System Corruption 3% Temperature Cool (0) Movement Core (50) Location -8/Garrison Parts ------- > --- POWER (1) -------- (None) > --- PROPULSION (4) --- (None) > --- UTILITY (4) ------ Advanced Targeting Computer Advanced Targeting Computer > --- WEAPON (2) ------- (None) > --- INVENTORY (5) ---- Light Nuclear Core Component Analysis Suite Peak State ------------ > --- POWER ------------ Light Ion Engine > --- PROPULSION ------- Aluminum Leg Aluminum Leg Carbon-fiber Leg Carbon-fiber Leg > --- UTILITY ---------- Medium Storage Unit Advanced Targeting Computer Advanced Targeting Computer Improved Light Armor Plating > --- WEAPON ----------- Assault Rifle Assault Cannon > --- INVENTORY -------- Light Nuclear Core Improved Light Armor Plating Component Analysis Suite [Rating: 24] Favorites ----------- Power Cooled Ion Engine Engine Cooled Ion Engine Power Core Light Nuclear Core Propulsion Aluminum Leg Leg Aluminum Leg Utility Medium Storage Unit Device Heat Sink Storage Medium Storage Unit Processor Advanced Targeting Computer Protection Improved Light Armor Plating Weapon Assault Cannon Energy Gun EM Pulse Gun Energy Cannon Beam Cannon Ballistic Gun Assault Rifle Ballistic Cannon Assault Cannon Build | -11 -10 -9 -8 -8 ------- Run | Yrd Mat Mat Mat Gar Slots Evolved 4 | . . 2 2 . Power . | . . . . . Propulsion 2 | . . 1 1 . Utility 2 | . . 1 1 . Weapon . | . . . . . Parts Attached 44 | 6 3 16 2 17 Power 7 | 1 . 3 . 3 Engine 6 | 1 . 3 . 2 Core 1 | . . . . 1 Reactor . | . . . . . Propulsion 11 | 2 . 3 1 5 Treads . | . . . . . Leg 11 | 2 . 3 1 5 Wheel . | . . . . . Hover . | . . . . . Flight . | . . . . . Utility 13 | 1 1 5 1 5 Device 2 | . . 1 . 1 Storage 3 | 1 1 1 . . Processor 2 | . . . 1 1 Hackware . | . . . . . Protection 6 | . . 3 . 3 Artifact . | . . . . . Weapon 13 | 2 2 5 . 4 Energy Gun 1 | 1 . . . . Energy Cannon 3 | . 2 1 . . Ballistic Gun 5 | 1 . 2 . 2 Ballistic Cannon 4 | . . 2 . 2 Launcher . | . . . . . Special Weapon . | . . . . . Impact Weapon . | . . . . . Slashing Weapon . | . . . . . Piercing Weapon . | . . . . . Special Melee Weapon . | . . . . . Unidentified Prototypes 2 | . . 2 . . Parts Lost 23 | . . . . 23 Power 3 | . . . . 3 Propulsion 8 | . . . . 8 Utility 6 | . . . . 6 Weapon 6 | . . . . 6 Highest Loss Streak 12 | . . . . 12 To Critical Strikes 2 | . . . . 2 Average Backups 6 | 1 3 7 8 5 Power 2 | 1 1 2 2 1 Propulsion . | . . 1 . . Utility 2 | . . 1 4 2 Weapon 1 | . 1 2 2 . Tool/Special . | . . . . . Unused Backups 7 | . . 5 . 2 Power 1 | . . . . 1 Propulsion . | . . . . . Utility 2 | . . 1 . 1 Weapon 4 | . . 4 . . Tool/Special . | . . . . . Average Slot Usage (%) 89 | . 85 90 90 86 Engine 8 | . 14 10 9 5 Leg 28 | . 28 30 27 28 Device 5 | . . 6 9 3 Storage 11 | . 15 13 9 8 Processor 6 | . . . 9 14 Protection 7 | . . 8 9 8 Energy Cannon 5 | . 8 13 . . Ballistic Gun 3 | . 9 4 . 6 Ballistic Cannon 8 | . . 2 18 8 Peak Build Rating 24 | 6 7 19 23 24 Average Rating 16 | 3 6 11 22 20 On Entrance 11 | . 6 7 19 23 Avg Prop Armor Cover (%) 4 | . . . . 4 Naked Turns . | . . . . . Heaviest Build 32 | 11 24 32 32 32 Greatest Support 50 | 20 20 30 40 50 Greatest Overweight (x) 5 | . 1 5 1 1 Average Overweight (x) . | . . . . . Largest Inventory Capacity 10 | 8 10 10 10 10 Average Capacity 9 | 6 8 10 10 9 Most Carried 10 | 5 7 10 10 10 Average Carried 6 | 2 3 7 8 5 Final Capacity 10 | 8 10 10 10 5 Final Carried 9 | 2 5 9 9 2 Class Distribution -------------------- 66% | Mutant 33% | Scavenger-Mutant Dominant Class ---------------- Mutant | -10/Materials Mutant | -9/Materials Mutant | -8/Materials Scavenger-Mutant | -8/Garrison Resources | -11 -10 -9 -8 -8 ----------- Run | Yrd Mat Mat Mat Gar Matter Collected 1439 | 251 . 339 383 466 Remotely . | . . . . . Salvage Created 1856 | . . 736 634 486 Parts 108 | . . 36 39 33 Haulers Intercepted 2 | . . . 2 . Recyclers Shooed 2 | . . . 2 . Parts Field Recycled . | . . . . . Retrieved Matter . | . . . . . Parts Self-Destructed . | . . . . . Prevented . | . . . . . Parts Restored . | . . . . . Kills | -11 -10 -9 -8 -8 ------- Run | Yrd Mat Mat Mat Gar Combat Hostiles Destroyed 42 | . . 14 12 16 Guns 5 | . . . . 5 Cannons 36 | . . 13 12 11 Classes Destroyed 8 | . . 5 1 2 Builder 2 | . . 2 . . Hauler 2 | . . . 2 . Recycler 5 | . . 1 4 . Swarmer 11 | . . 2 6 3 Grunt 13 | . . 5 2 6 Sentry 14 | . . 7 4 3 Hunter 3 | . . . . 3 Programmer 1 | . . . . 1 Best Kill Streak 6 | . . 3 5 6 Combat Bots Only 6 | . . 3 4 6 Max Kills in Single Turn 2 | . . 1 2 1 Gunslinging . | . . . . . Exploded . | . . . . . Melee . | . . . . . Uniques/NPCs Destroyed . | . . . . . Combat | -11 -10 -9 -8 -8 -------- Run | Yrd Mat Mat Mat Gar Hostile Shots Fired 426 | . . 77 57 292 Missed 121 | . . 22 17 82 Hits 305 | . . 55 40 210 Projectile 305 | . . 55 40 210 Critical Strikes 14 | . . 2 . 12 Part Disruptions 2 | . . . . 2 Damage Taken 4012 | . . 688 441 2883 Core 702 | . . 133 46 523 Absorbed by Shields . | . . . . . Core Remaining (%) 88 | 100 100 66 . . Volleys Fired 143 | . 2 46 38 57 Largest 2 | . 2 2 2 2 Hottest 120 | . 60 120 74 74 Shots Fired 263 | . 4 93 76 90 Gun 43 | . 4 6 . 33 Cannon 220 | . . 87 76 57 Launcher . | . . . . . Special . | . . . . . Kinetic 190 | . 2 22 76 90 Thermal 71 | . . 71 . . Explosive . | . . . . . Electromagnetic 2 | . 2 . . . Robot Hit Streak 19 | . 1 16 13 19 Robot Miss Streak 3 | . 3 3 3 2 Penetration Max . | . . . . . Secondary Targets . | . . . . . Shots Hit Robots 165 | . 1 58 46 60 Core Hits 72 | . . 22 21 29 Critical Kills . | . . . . . Critical Parts Destroyed . | . . . . . Critical Strikes 3 | . . . 2 1 Blast 3 | . . . 2 1 Melee Attacks . | . . . . . Impact . | . . . . . Slashing . | . . . . . Piercing . | . . . . . Sneak Attacks . | . . . . . Combat Hostiles . | . . . . . Follow-up Attacks . | . . . . . Damage Inflicted 3425 | . 20 1062 1176 1167 Guns 299 | . 20 30 . 249 Cannons 3126 | . . 1032 1176 918 Explosions . | . . . . . Melee . | . . . . . Ramming . | . . . . . Kinetic 2552 | . . 209 1176 1167 Thermal 853 | . . 853 . . Explosive . | . . . . . Electromagnetic 20 | . 20 . . . Impact . | . . . . . Slashing . | . . . . . Piercing . | . . . . . Highest Corruption 3 | . . 1 . 3 Average Corruption 1 | . . 1 . 2 Corruption Purged . | . . . . . Corruption Blocked . | . . . . . Effects 11 | . . 6 . 5 Message Errors 6 | . . 4 . 2 Matter Fused 2 | . . . . 2 Heat Flow Errors 1 | . . 1 . . Data Loss (minor) 1 | . . . . 1 Misfires 1 | . . 1 . . Overload Shots . | . . . . . Overflow Damage 25 | . . . 25 . Projectiles 25 | . . . 25 . Explosions . | . . . . . Melee . | . . . . . Knockbacks 28 | . . 6 10 12 Impact . | . . . . . Kinetic 23 | . . 3 8 12 Secondary 5 | . . 3 2 . Self-Inflicted Damage . | . . . . . Shots . | . . . . . Rammed . | . . . . . Targets Rammed . | . . . . . Kicked . | . . . . . Crushed . | . . . . . Highest Temperature 527 | . 20 527 . 23 Average Temperature 104 | . 15 113 . 8 Received Heat Transfer 1062 | . . 234 108 720 Effects 5 | . . 5 . . Shutdowns 2 | . . 2 . . Damage (minor) 1 | . . 1 . . Damage (major) 2 | . . 2 . . Siege Activations . | . . . . . Martial Activations . | . . . . . Shielding Activations . | . . . . . Robots Disrupted . | . . . . . Combat Hostiles . | . . . . . Robots Corrupted . | . . . . . Combat Hostiles . | . . . . . Parts Fried . | . . . . . Impact Corruptions . | . . . . . Robots Melted 1 | . . 1 . . Combat Hostiles 1 | . . 1 . . Parts Melted 6 | . . 6 . . Heat Transferred 1813 | . . 1813 . . Parts Sabotaged . | . . . . . Parts Stolen . | . . . . . Parts Stripped . | . . . . . Power Chain Reactions . | . . . . . Alert | -11 -10 -9 -8 -8 ------- Run | Yrd Mat Mat Mat Gar Maximum Alert Level 2 | . . . . 2 Low Security (%) 80 | 100 100 100 100 24 Level 1 16 | . . . . 63 Level 2 3 | . . . . 12 Level 3 . | . . . . . Level 4 . | . . . . . Level 5 . | . . . . . High Security . | . . . . . Max Security . | . . . . . Peak Influence 449 | . 15 117 154 449 Initial 70 | . . . 46 70 Average 120 | . . 63 86 278 Influence Increases 1419 | . 15 473 372 559 Destroy 0b10 Robot/C 840 | . . 280 240 320 Destroy 0b10 Robot/NC 45 | . . 15 30 . Destroy Leader 174 | . . 100 54 20 Trap Triggered on 0b10 40 | . . 40 . . Successful Hack 30 | . . . 16 14 Anti-Garrison Action 100 | . . . . 100 Destroy Structure 25 | . . 8 17 . Partial Spotted 15 | . 15 . . . Lose Combat Pursuer 150 | . . 30 15 105 Influence Decreases 1020 | . 15 362 375 268 Entered New Map 103 | . . . 65 38 Time Decay 687 | . 15 362 310 . Lost Part 230 | . . . . 230 Squads Dispatched 4 | . . 3 1 . Investigation 2 | . . 1 1 . Extermination . | . . . . . Reinforcement 2 | . . 2 . . Assault . | . . . . . Garrison . | . . . . . Intercept . | . . . . . Searches Triggered . | . . . . . Construction Impeded 1 | . . 1 . . Haulers Reinforced . | . . . . . Active Scanning Responses . | . . . . . Cargo Convoy Interrupts . | . . . . . Stealth | -11 -10 -9 -8 -8 --------- Run | Yrd Mat Mat Mat Gar Distress Signals 4 | . . 2 2 . Communications Jammed . | . . . . . Distress Signals . | . . . . . Times Spotted 79 | . 2 28 20 29 Peak Tracking Total 6 | . 2 4 4 6 Tactical Retreats 5 | . . 1 1 3 Traps | -11 -10 -9 -8 -8 ------- Run | Yrd Mat Mat Mat Gar Traps Triggered 4 | . . 4 . . Indirectly . | . . . . . Trap Hack Attempts . | . . . . . Triggered . | . . . . . Disarmed 6 | . . . 6 . Reprogrammed 6 | . . 6 . . Reused 4 | . . 4 . . Traps Extracted . | . . . . . Installed . | . . . . . Triggered 4 | . . 4 . . Machines | -11 -10 -9 -8 -8 ---------- Run | Yrd Mat Mat Mat Gar Machines Disabled 2 | . . . . 2 Max in Single Turn 1 | . . . . 1 Garrison Relay 2 | . . . . 2 Machines Repaired . | . . . . . Machines Dismantled . | . . . . . Machines Sabotaged . | . . . . . Overloaded Fab Kills . | . . . . . Hacking | -11 -10 -9 -8 -8 --------- Run | Yrd Mat Mat Mat Gar Machines Accessed 16 | . . 8 6 2 Terminals 12 | . . 6 4 2 Fabricators . | . . . . . Repair Stations . | . . . . . Recycling Units 1 | . . 1 . . Scanalyzers 2 | . . 1 1 . Garrison Access 1 | . . . 1 . Total Hacks 40 | . . 13 23 4 Successful 22 | . . 9 12 1 Failed 18 | . . 4 11 3 Catastrophic 5 | . . 2 1 2 Database Lockouts . | . . . . . Manual . | . . . . . Terminals 24 | . . 9 11 4 Fabricators . | . . . . . Repair Stations . | . . . . . Recycling Units 1 | . . 1 . . Scanalyzers 12 | . . 3 9 . Garrison Access 3 | . . . 3 . Terminal Hacks 11 | . . 6 4 1 Prototype ID Bank 3 | . . 2 1 . Emergency Access Points 2 | . . 1 . 1 Alert Level 1 | . . 1 . . Disarm Traps 2 | . . . 2 . Reprogram Traps 1 | . . 1 . . Dispatch Records 1 | . . . 1 . Security Status 1 | . . 1 . . Fabricator Hacks . | . . . . . Repair Station Hacks . | . . . . . Recycling Unit Hacks 1 | . . 1 . . Report Inventory 1 | . . 1 . . Scanalyzer 9 | . . 2 7 . Insert Component 3 | . . . 3 . Analyze 3 | . . . 3 . Retrieve Study 3 | . . 2 1 . Garrison Access Hacks 1 | . . . 1 . Unlock Access 1 | . . . 1 . Unauthorized Hacks . | . . . . . Terminals . | . . . . . Fabricators . | . . . . . Repair Stations . | . . . . . Recycling Units . | . . . . . Scanalyzers . | . . . . . Garrison Access . | . . . . . Data Cores Recovered . | . . . . . Used . | . . . . . Hacking Detections 13 | . . 7 4 2 Full Trace Events 2 | . . 1 1 . Feedback Events . | . . . . . Feedback Blocked . | . . . . . Robot Schematics Acquired . | . . . . . Robots Built . | . . . . . Authchips . | . . . . . Time . | . . . . . Total Robot Build Rating . | . . . . . Part Schematics Acquired 2 | . . . 2 . Parts Built . | . . . . . Authchips . | . . . . . Time . | . . . . . Total Part Build Rating . | . . . . . Part Studies Acquired 2 | . . 1 1 . Parts Repaired . | . . . . . Time . | . . . . . Parts Recycled . | . . . . . Recycled Matter . | . . . . . Retrieved Matter . | . . . . . Retrieved Components . | . . . . . Parts Scanalyzed 2 | . . . 2 . Part Schematics Acquired 2 | . . . 2 . Parts Damaged . | . . . . . Bothacking | -11 -10 -9 -8 -8 ------------ Run | Yrd Mat Mat Mat Gar Used RIF Installer . | . . . . . Robots Hacked . | . . . . . Non-combat . | . . . . . Combat . | . . . . . Robot Hacks Applied . | . . . . . Relay Couplers Released 13 | . . . . 13 Machine Destruction 9 | . . . . 9 Programmers 4 | . . . . 4 Fabnet Peak Effective % . | . . . . . Robots Rewired . | . . . . . Allies Hacked . | . . . . . Hacks Repelled . | . . . . . Allies | -11 -10 -9 -8 -8 -------- Run | Yrd Mat Mat Mat Gar Total Allies . | . . . . . Largest Group . | . . . . . Highest-Rated Group . | . . . . . Highest-Rated Ally . | . . . . . Total Orders . | . . . . . Ally Attacks . | . . . . . Total Damage . | . . . . . Kills . | . . . . . Allies Corrupted . | . . . . . Allies Melted . | . . . . . Intel | -11 -10 -9 -8 -8 ------- Run | Yrd Mat Mat Mat Gar Active Infowar (turns) . | . . . . . Robot Analysis Total . | . . . . . Derelict Logs Recovered . | . . . . . Drone Launches . | . . . . . Drone Recoveries . | . . . . . Exploration | -11 -10 -9 -8 -8 ------------- Run | Yrd Mat Mat Mat Gar Turns Passed 2476 | 49 165 925 688 649 Spaces Moved 1302 | 39 102 469 318 374 Core 23 | 16 . 7 . . Treads . | . . . . . Legs 1279 | 23 102 462 318 374 Wheels . | . . . . . Hover . | . . . . . Flight . | . . . . . Fastest Speed 50 | 50 120 120 105 105 Average Speed 134 | 91 126 136 167 110 Slowest Speed 300 | 120 190 300 175 190 Overloaded Moves . | . . . . . Propulsion Burnouts . | . . . . . Robots Hopped . | . . . . . Potential Cave-ins . | . . . . . Cave-ins Triggered . | . . . . . Exploration Rate (%) 33 | 3 27 47 38 50 Regions Visited 4 Branch Regions . Pre-discovered Areas . | . . . . . Known Exits Taken 1 | . . . 1 . Unknown Exits Taken 3 | 1 1 1 . . Scrap Searched . | . . . . . Spaces Dug . | . . . . . Terrain Destroyed 16 | . . 2 14 . Melee . | . . . . . Projectile 16 | . . 2 14 . AOE . | . . . . . Terrain Rammed . | . . . . . Walls Destroyed . | . . . . . Machines Disabled . | . . . . . Actions | -11 -10 -9 -8 -8 --------- Run | Yrd Mat Mat Mat Gar Total 1781 | 52 136 673 398 522 Wait 204 | . 22 83 39 60 Move 1297 | 38 101 468 317 373 Hop . | . . . . . Pick Up 60 | 8 6 34 2 10 Fast Attach . | . . . . . Attach 43 | 6 3 16 2 16 Detach 1 | . . . . 1 Swap 6 | . . 4 . 2 Drop 27 | . 2 22 . 3 Fire 143 | . 2 46 38 57 Melee . | . . . . . Ram . | . . . . . Kick . | . . . . . Crush . | . . . . . Escape Stasis . | . . . . . Rewire . | . . . . . Trap . | . . . . . Miscellaneous . | . . . . . Route ------- -11/Scrapyard -10/Materials -9/Materials (discovered 3 exits: *Mat x2 / [*Sto]) -8/Materials -8/Garrison (discovered 1 exit: [*Mat]) History --------- Turn | Location | Event 8 | -11/Scrapyard | Discovered new exit (range 15) 50 | -11/Scrapyard | Entered Materials 175 | -10/Materials | Discovered new exit (range 16) 215 | -10/Materials | Entered another Materials area 215 | -9/Materials | Evolved 2 slots: Propulsion x1, Utility x1 315 | -9/Materials | Build established: Mutant 454 | -9/Materials | Discovered new exit (range 5) 612 | -9/Materials | Discovered new exit (range 3) 863 | -9/Materials | Build established: Scavenger-Mutant 1048 | -9/Materials | Discovered new exit (range 4) 1140 | -9/Materials | Entered another Materials area 1140 | -8/Materials | Evolved 2 slots: Propulsion x1, Utility x1 1218 | -8/Materials | Build established: Mutant 1801 | -8/Materials | Identified exit to Garrison 1828 | -8/Materials | Entered Garrison 1858 | -8/Garrison | Triggered checkpoint 1877 | -8/Garrison | Garrison Relay disabled 2056 | -8/Garrison | Triggered checkpoint 2105 | -8/Garrison | Lost 12 parts (2p4n3u3w) 2184 | -8/Garrison | Triggered checkpoint 2294 | -8/Garrison | Discovered new exit (range 12) 2357 | -8/Garrison | Garrison Relay disabled 2372 | -8/Garrison | Triggered checkpoint 2380 | -8/Garrison | Build established: Scavenger-Mutant 2385 | -8/Garrison | Core integrity fell below 50% 2415 | -8/Garrison | Lost 4 parts (1n1u2w) 2428 | -8/Garrison | Attempted to access garrison exit controls, blocked by remote lockdown 2472 | -8/Garrison | Core integrity fell below 20% 2477 | -8/Garrison | Destroyed by H-55 Commando with Gauss Rifle Last Messages --------------- Penetrated by Slug. Aluminum Leg+ destroyed. Critical hit (Burn: +37). Attempting to access garrison exit controls... Remote lockdown engaged. X2DS|X5KW NM:A,7WJH8O Slug penetrates Wall. Aluminum Leg+ destroyed. Penetrated by Slug. Carbon-fiber Leg destroyed. Penetrated by Slug. Lgt. Nuclear Core destroyed. Med. Storage Unit destroyed. Penetrated by Slug. Imp. Light Armor Plating destroyed. Critical hit (Burn: +37). Penetrated by Slug. System corrupted: Matter fused (-8). Slug penetrates Wall. Penetrated by Slug. Map ----- +----------------------------------------------------+ | ???????????????????????????????#######+#### ## | | ????????????????????????????????????????### [ ## | | ????????????????????????????????????????+ * | | ????????????????????????????????????????# ! = | | ????????????????????????????????????????# | | ????????????????????????????????????????# | | ??????????????????????######??????###???###!! ## | | ??????????????????????#!!!!#????###T####### !!## | | ??????????????????????#! ###### [ ! | | ??????????????????????# + | | | ??????????????????????#| ###### ##+##### | | ??????????????????????#||||#????# #??????## ## | | ??????????????????????###+##????# #???????# ## | | ????????????????????????????????# #???????# #### | | ????????????????????????????????# #???????# #??? | | ????????????????????????????????# #???????+ #??? | | ????????????????????????????????# #???????# #??? | | ???????????????????????##+####### ####+#### #??? | | ???????????????????????# #??? | | ???????????????????????# #??? | | ???????????????????????# ####### #####+##### #??? | | ???????????????????????# g#?????# #?????????# #??? | | ???????????????????????#gg#?????# #?????????# #??? | | ???????????????????????# #?????# #?????????# #??? | | ???????????????????????# #?????# #?????????# #??? | | ???????????????????????# @#?????# #?????????# #??? | | ???????????????????????#h #?????# #?????????# #??? | | ???????????????????????#h #?????# #?????????# #??? | | ???????????????????????# #?????# #?????????# #??? | | ?????????????????????### #?????# #???????### #??? | | ?????????????????????# #?????# "???????# #??? | | ?????????????????????# < #?????# "?+?????+ #??? | | ?????????????????????# #?????# "???????# #??? | | ?????????????????????######?????# #???????### #??? | | ????????????????????????????????# #?????????# #??? | | ????????????????????????????????# ########### #??? | | ????????????????????????????????# ^ ! ! #??? | | ????????????????????????????????# ####!!!####+#??? | | ????????????????????????????????# #?#"" ""#?# #??? | | ????????????????????????????????# #?#######?# #??? | | ????????????????????????????????# #?????????# #??? | | ????????????????????????????????# #?????????# #??? | | ????????????????????????????????+ +?????????? ???? | | ????????????????????????????????# #?????????? ???? | | ??????????????????????????????+?# #?+????????#???? | | ????????????????????????????????? ???????????????? | | ????????????????????????????????+ +??????????????? | | ?????????????????????????????????#???????????????? | | ?????????????????????????????????????????????????? | | ?????????????????????????????????????????????????? | +----------------------------------------------------+ Best States ------------- Heat Dissipation 41 Energy Generation 14 Energy Capacity 280 Matter Stores 300 Matter Capacity 300 Sight Range 16 Terrain Scan Density 10 Armor Coverage 150 Evasion (%) 55 Targeting Accuracy 16 Item Schematics ----------------- Imp. Light Armor Plating | -8/Materials | Scanalyzed Assault Cannon | -8/Materials | Scanalyzed Robot Schematics ------------------ None Fabricated ------------ Nothing Repaired ---------- Nothing Studied --------- Aluminum Leg | -9/Materials | Hacked Assault Cannon | -8/Materials | Hacked Alien Tech Used ----------------- None Achievements -------------- None Challenges ------------ None Game ------ Seed BackupArmoredShooter Manual? 0 Play Time 00:34:21 Cumulative 6.8 hours Start 2026.01.03 @ 01:18:04 End 2026.01.03 @ 01:54:50 Sessions 2 Manual Loads 0 Difficulty Rogue Special Mode None Game No. 18 Rogue 18 Adventurer 0 Explorer 0 Win Type - Total 0 Types 0/0/0/0/0/0/0/0/0/0 Lore% 8 Gallery% 10 Achievement% 10 Wizard Run 0 Options --------- Layout 1 ASCII 0 Keyboard 0 Movement Mouse Keybinds 0 Fullscreen 1 Font 32/SmallcapsGlow Map View 50x35 Zoom Use 0% Tactical HUD 0 Map Filters NONE Filters NONE Steam 1 RUN: 361125cf-8808-4055-bde7-d59d0f0d71d2